lending/lending_fUSD_20251114
["ID","MTS","AMOUNT","RATE_DAILY","PERIOD"]
[393977702,1763153977188,-478.82688331,0.0005,120]
[393977703,1763153977236,-246855.07812532,0.0005,120]
[393977704,1763153979943,-1490.95828993,0.000467,120]
[393977705,1763153980010,-1490.95828993,0.000481,120]
[393977706,1763153980068,-1490.95828993,0.000496,120]
[393977707,1763153980126,-753144.92187468,0.0005,120]
[393977708,1763153980186,-1000000.0,0.0005,120]
[393977709,1763153980243,-1000000.0,0.0005,120]
[393977710,1763153980300,-1000000.0,0.0005,120]
[393977711,1763153980356,-1000000.0,0.0005,120]
[393977712,1763153980419,-200000.0,0.0005,120]
[393977713,1763153980474,-150.0,0.0005,30]
[393977714,1763153980525,-150.0,0.0005,30]
[393977715,1763153980577,-500.0,0.00050068,120]
[393977716,1763153980628,-500.0,0.00050068,120]
[393977717,1763153980688,-500.0,0.00050068,120]
[393977718,1763153980738,-500.0,0.00050068,120]
[393977719,1763153980794,-727.5099393,0.00050068,120]
[393977720,1763153980846,-1490.95828993,0.000511,120]
[393977721,1763153980893,-1000.0,0.00051999,120]
[393977722,1763153980940,-36863.7350263,0.00052,120]
[393977723,1763153983907,-192.30340372,0.000467,120]
[393977724,1763153983962,-192.30340372,0.000481,120]
[393977725,1763153984015,-192.30340372,0.000496,120]
[393977726,1763153984067,-21215.21306708,0.00052,120]
[393977727,1763153984116,-866.59606264,0.00052,120]
[393977728,1763153984168,-1490.95828993,0.000526,120]
[393977729,1763153984217,-608.0,0.00052698,120]
[393977730,1763153984267,-1318.0,0.00052698,120]
[393977731,1763153984321,-574.0,0.00052698,120]
[393977732,1763153984371,-3429.0,0.00052698,120]
[393977733,1763153984421,-1598.0,0.00052698,120]
[393977734,1763153984468,-1275.0,0.00052698,120]
[393977735,1763153984516,-793.0,0.00052698,120]
[393977736,1763153984570,-2145.0,0.00052698,120]
[393977737,1763153984615,-520.129,0.00052698,120]
[393977738,1763153984879,-907.0,0.00052698,120]
[393977739,1763153984939,-1000.0,0.00052999,120]
[393977740,1763153984990,-500.0,0.00053767,90]
[393977741,1763153985041,-500.0,0.00053795,120]
[393977742,1763153985088,-500.0,0.00053795,120]
[393977743,1763153985132,-500.0,0.00053795,120]
[393977744,1763153985178,-554.98,0.00053795,120]
[393977745,1763153985221,-500.0,0.00053795,120]
[393977746,1763153985266,-500.0,0.00053795,120]
[393977747,1763153985308,-500.0,0.00053795,120]
[393977748,1763153985354,-500.0,0.00053795,120]
[393977749,1763153985398,-1000.0,0.00053999,120]
[393977750,1763153985443,-500.0,0.00054041,90]
[393977751,1763153985488,-500.0,0.00054315,90]
[393977752,1763153985534,-150.0,0.00054356,120]
[393977753,1763153985579,-1000.0,0.00054443,120]
[393977754,1763153985624,-150.0,0.00054495,120]
[393977755,1763153985675,-500.0,0.00054495,120]
[393977756,1763153985722,-500.0,0.00054495,120]
[393977757,1763153985771,-500.0,0.00054495,120]
[393977758,1763153985822,-500.0,0.00054495,120]
[393977759,1763153985870,-500.0,0.00054495,120]
[393977760,1763153985918,-500.0,0.00054495,120]
[393977761,1763153985963,-500.0,0.00054495,120]
[393977762,1763153986009,-500.0,0.00054495,120]
[393977763,1763153986054,-500.0,0.00054495,120]
[393977764,1763153986098,-417.0,0.00054495,120]
[393977765,1763153986149,-250.0,0.00054495,120]
[393977766,1763153986195,-150.0,0.00054495,120]
[393977767,1763153986239,-150.0,0.00054495,120]
[393977768,1763153986282,-200.0,0.00054495,120]
[393977769,1763153986329,-150.0,0.00054495,120]
[393977770,1763153986372,-500.0,0.00054495,120]
[393977771,1763153986415,-550.0,0.00054495,120]
[393977772,1763153986458,-150.0,0.00054495,120]
[393977773,1763153986502,-281.75197015,0.00054495,120]
[393977774,1763153986545,-500.0,0.00054589,90]
[393977775,1763153986594,-1467.88666213,0.00054678,87]
[393977776,1763153986649,-210.67809692,0.0005474,35]
[393977777,1763153986710,-500.0,0.00054794,120]
[393977778,1763153986769,-500.0,0.00054794,120]
[393977779,1763153986824,-500.0,0.00054794,120]
[393977780,1763153986875,-500.0,0.00054794,120]
[393977781,1763153986925,-500.0,0.00054794,120]
[393977782,1763153986968,-500.0,0.00054794,120]
[393977783,1763153987011,-500.0,0.00054794,120]
[393977784,1763153987054,-500.0,0.00054794,120]
[393977785,1763153987099,-500.0,0.00054794,120]
[393977786,1763153987146,-500.0,0.00054794,120]
[393977787,1763153987192,-500.0,0.00054794,120]
[393977788,1763153987237,-500.0,0.00054794,120]
[393977789,1763153987281,-500.0,0.00054794,30]
[393977790,1763153987330,-400.0,0.00054794,120]
[393977791,1763153987376,-832.5,0.00054794,120]
[393977792,1763153987426,-500.0,0.00054794,120]
[393977793,1763153987473,-500.0,0.00054794,120]
[393977794,1763153987516,-500.0,0.00054794,120]
[393977795,1763153987560,-500.0,0.00054794,120]
[393977796,1763153987604,-500.0,0.00054794,120]
[393977797,1763153987650,-500.0,0.00054794,120]
[393977798,1763153987698,-601.89118279,0.00054794,120]
[393977799,1763153987748,-500.0,0.00054794,120]
[393977800,1763153987798,-500.0,0.00054794,120]
[393977801,1763153987849,-1000.0,0.00054794,120]
[393977802,1763153987899,-500.0,0.00054794,120]
[393977803,1763153987953,-500.0,0.00054794,120]
[393977804,1763153988002,-392.98535022,0.00054794,120]
[393977805,1763153988049,-500.0,0.00054794,120]
[393977806,1763153988091,-597.21,0.00054794,120]
[393977807,1763153988135,-500.0,0.00054794,120]
[393977808,1763153988181,-500.0,0.00054794,120]
[393977809,1763153988228,-500.0,0.00054794,120]
[393977810,1763153988273,-403.46764708,0.00054794,120]
[393977811,1763153988316,-500.0,0.00054794,120]
[393977812,1763153988362,-500.0,0.00054794,120]
[393977813,1763153988401,-400.0,0.00054794,120]
[393977814,1763153988440,-400.0,0.00054794,120]
[393977815,1763153988481,-500.0,0.00054794,120]
[393977816,1763153988523,-590.86,0.00054794,120]
[393977817,1763153988563,-400.0,0.00054794,120]
[393977818,1763153988604,-414.92251648,0.00054794,120]
[393977819,1763153988647,-500.0,0.00054794,120]
[393977820,1763153988689,-500.0,0.00054794,120]
[393977821,1763153988731,-500.0,0.00054794,120]
[393977822,1763153988772,-500.0,0.00054794,120]
[393977823,1763153988824,-3299.74,0.00054794,120]
[393977824,1763153988867,-500.0,0.00054794,120]
[393977825,1763153988908,-500.0,0.00054794,120]
[393977826,1763153988948,-500.0,0.00054794,120]
[393977827,1763153988987,-500.0,0.00054794,120]
[393977828,1763153989026,-500.0,0.00054795,35]
[393977829,1763153989066,-151.723884,0.00054795,30]
[393977830,1763153989146,150.0,0.00052,30]
[393977831,1763153989194,707.52079646,0.00052698,120]
[393978169,1763154244885,8518.105171,0.00015592,2]
[393978170,1763154244909,10000.01,0.00015592,2]
[393978171,1763154244932,10000.01,0.00015592,2]
[393978172,1763154244955,10000.01,0.00015592,2]
[393978173,1763154244976,10000.01,0.00015592,2]
[393978174,1763154244997,1888.634829,0.00015592,2]
[393978175,1763154296870,172.83,0.00012487,2]
[393978324,1763154376306,7938.545171,0.00015588,2]
[393978325,1763154376332,3828.154829,0.00015588,2]
[393978329,1763154487396,1852.42,0.00015587,2]
[393978333,1763154500438,449.56,0.00017,10]
[393978343,1763154571369,1755.92,0.00015574,2]
[393978372,1763154631623,-250.0,0.00015934,2]
[393978374,1763154631633,-19.25912839,0.00015987,2]
[393978382,1763154631687,-397.48825232,0.00015987,2]
[393978383,1763154631699,-83.25261929,0.00015987,2]
[393978384,1763154631708,-250.0,0.00016001,2]
[393978385,1763154631717,-272.45997642,0.00016087,2]
[393978386,1763154631729,-3115.61143538,0.00016087,2]
[393978387,1763154631741,-549.8385882,0.00016087,2]
[393978388,1763154631751,-244.59913329,0.00016173,2]
[393978389,1763154631761,-850.18124485,0.00016243,2]
[393978390,1763154631773,-2608.85079708,0.00016243,2]
[393978391,1763154631783,-137587.4179,0.00016253,2]
[393978392,1763154631793,-500.0,0.00016273,2]
[393978393,1763154631803,-574.18497411,0.00016273,2]
[393978394,1763154631812,-501.35320613,0.00016273,2]
[393978395,1763154631822,-625.21960734,0.00016273,2]
[393978396,1763154631831,-1200.0,0.00016339,2]
[393978397,1763154631841,-300.0,0.0001634,2]
[393978398,1763154631851,-300.0,0.0001634,2]
[393978399,1763154631861,-1200.0,0.00016342,2]
[393978400,1763154631870,-550.0,0.00016342,2]
[393978401,1763154631879,-1064.23,0.00016343,2]
[393978402,1763154631888,-151.0,0.00016343,2]
[393978403,1763154631898,-151.0,0.00016343,2]
[393978404,1763154631907,-151.0,0.00016343,2]
[393978405,1763154631917,-151.0,0.00016343,2]
[393978406,1763154631927,-151.0,0.00016343,2]
[393978407,1763154631936,-151.0,0.00016343,2]
[393978408,1763154631945,-151.0,0.00016343,2]
[393978409,1763154631954,-151.0,0.00016343,2]
[393978410,1763154631964,-151.0,0.00016343,2]
[393978411,1763154631973,-151.0,0.00016343,2]
[393978412,1763154631982,-151.0,0.00016343,2]
[393978413,1763154631992,-151.0,0.00016343,2]
[393978414,1763154632001,-151.0,0.00016343,2]
[393978415,1763154632010,-151.0,0.00016343,2]
[393978416,1763154632020,-151.0,0.00016343,2]
[393978417,1763154632029,-151.0,0.00016343,2]
[393978418,1763154632038,-151.0,0.00016343,2]
[393978419,1763154632047,-151.0,0.00016343,2]
[393978420,1763154632056,-151.0,0.00016343,2]
[393978421,1763154632065,-151.0,0.00016343,2]
[393978422,1763154632074,-151.0,0.00016343,2]
[393978423,1763154632083,-151.0,0.00016343,2]
[393978424,1763154632092,-151.0,0.00016343,2]
[393978425,1763154632101,-151.0,0.00016343,2]
[393978426,1763154632110,-220.78102143,0.00016343,2]
[393978427,1763154632119,-404.03562317,0.00016351,2]
[393978428,1763154632128,-506.72980237,0.00016352,2]
[393978429,1763154632137,-500.0,0.00016352,2]
[393978430,1763154632147,-500.0,0.00016352,2]
[393978431,1763154632157,-500.0,0.00016352,2]
[393978432,1763154632169,-500.0,0.00016352,2]
[393978433,1763154632178,-500.0,0.00016352,2]
[393978434,1763154632188,-500.0,0.00016352,2]
[393978435,1763154632197,-500.0,0.00016352,2]
[393978437,1763154632207,-500.0,0.00016352,2]
[393978439,1763154632217,-500.0,0.00016352,2]
[393978440,1763154632226,-500.0,0.00016352,2]
[393978441,1763154632236,-500.0,0.00016352,2]
[393978442,1763154632245,-500.0,0.00016352,2]
[393978443,1763154632255,-500.0,0.00016352,2]
[393978444,1763154632264,-500.0,0.00016352,2]
[393978445,1763154632274,-537.65281629,0.00016352,2]
[393978446,1763154632283,-500.0,0.00016352,2]
[393978447,1763154632293,-500.0,0.00016352,2]
[393978448,1763154632301,-500.0,0.00016352,2]
[393978449,1763154632310,-500.0,0.00016352,2]
[393978450,1763154632320,-500.0,0.00016352,2]
[393978451,1763154632329,-150.00000001,0.00016352,2]
[393978453,1763154632338,-500.0,0.00016352,2]
[393978455,1763154632347,-500.0,0.00016352,2]
[393978456,1763154632357,-500.0,0.00016352,2]
[393978458,1763154632365,-500.0,0.00016352,2]
[393978460,1763154632375,-500.0,0.00016352,2]
[393978462,1763154632384,-500.0,0.00016352,2]
[393978463,1763154632393,-500.0,0.00016352,2]
[393978465,1763154632402,-500.0,0.00016352,2]
[393978467,1763154632412,-500.0,0.00016352,2]
[393978469,1763154632422,-500.0,0.00016352,2]
[393978470,1763154632431,-500.0,0.00016352,2]
[393978472,1763154632441,-500.0,0.00016352,2]
[393978474,1763154632451,-500.0,0.00016352,2]
[393978476,1763154632461,-500.0,0.00016352,2]
[393978478,1763154632470,-638.7613927,0.00016373,2]
[393978479,1763154632479,-500.0,0.00016373,2]
[393978481,1763154632489,-500.0,0.00016373,2]
[393978483,1763154632498,-363.66095909,0.00016373,2]
[393978486,1763154632520,-136.33904091,0.00016373,2]
[393978488,1763154632529,-736.32626953,0.00016427,2]
[393978496,1763154632615,-2722.70577235,0.00016427,2]
[393978497,1763154632624,-150.0,0.00016478,2]
[393978499,1763154632633,-389.12,0.00016492,2]
[393978501,1763154632642,-999.0,0.00016516,3]
[393978503,1763154632651,-1412.17422765,0.00016521,2]
[393978505,1763154632663,-1613.9502996,0.00016521,2]
[393978507,1763154632675,-911.78547275,0.00016521,2]
[393978508,1763154632684,-173.02,0.00016574,2]
[393978510,1763154632694,-430.2,0.00016586,2]
[393978512,1763154632703,-2813.06019039,0.00016611,2]
[393978517,1763154632749,-645.97185149,0.00016611,2]
[393978519,1763154632759,-1064.23,0.00016617,2]
[393978521,1763154632768,-461.21602851,0.00016655,2]
[393978523,1763154632779,-395.5107,0.00016655,2]
[393978525,1763154632790,-342.68,0.00016655,2]
[393978526,1763154632801,-780.71527075,0.00016655,2]
[393978528,1763154632812,-322.04800074,0.00016655,2]
[393978530,1763154632821,-2260.6277732,0.00016713,2]
[393978532,1763154632832,-515.71559737,0.00016713,2]
[393978534,1763154632843,-1811.79123987,0.00016713,2]
[393978536,1763154632855,-1650.0,0.00016713,2]
[393978538,1763154632867,-27034.95247635,0.00016713,2]
[393978540,1763154632877,-952.0,0.00016716,2]
[393978542,1763154632886,-952.0,0.00016731,2]
[393978543,1763154632896,-151.0,0.00016745,2]
[393978545,1763154632905,-151.0,0.00016748,2]
[393978547,1763154632916,-151.0,0.00016748,2]
[393978549,1763154632925,-151.0,0.00016748,2]
[393978551,1763154632935,-151.0,0.00016748,2]
[393978552,1763154632944,-3459.03204188,0.00016795,2]
[393978554,1763154632953,-200.0,0.00016823,2]
[393978556,1763154632963,-1064.23,0.00016891,2]
[393978558,1763154632972,-345.54,0.00016902,2]
[393978559,1763154632983,-952.0,0.00016919,2]
[393978561,1763154632993,-1000.0,0.00016921,2]
[393978563,1763154633002,-3459.03204188,0.00016979,2]
[393978565,1763154633012,-200.0,0.00016988,2]
[393978567,1763154633021,-250.0,0.00017,2]
[393978568,1763154633031,-500.0,0.00017014,2]
[393978570,1763154633040,-952.0,0.00017034,2]
[393978572,1763154633050,-300.0,0.000171,6]
[393978574,1763154633058,-438.0,0.00017156,2]
[393978576,1763154633069,-1064.23,0.00017165,2]
[393978577,1763154633079,-952.0,0.00017177,2]
[393978589,1763154633258,-600.0,0.000172,6]
[393978590,1763154633268,-1682.98199102,0.00017242,2]
[393978591,1763154633278,-438.0,0.00017297,2]
[393978592,1763154633288,-2000.0,0.000173,2]
[393978593,1763154633297,-900.0,0.000173,6]
[393978594,1763154633307,-438.0,0.00017314,2]
[393978595,1763154633316,-336.17123492,0.00017398,2]
[393978596,1763154633325,-1300.0,0.000174,6]
[393978597,1763154633335,-1064.23,0.00017439,2]
[393978598,1763154633344,-935.0,0.00017454,2]
[393978599,1763154633353,-1500.0,0.00017468,2]
[393978600,1763154633362,-675.57673767,0.00017476,4]
[393978601,1763154633371,-250.0,0.00017476,2]
[393978603,1763154633382,-300.0,0.00017476,2]
[393978605,1763154633391,-300.0,0.00017476,2]
[393978607,1763154633400,-300.0,0.00017476,2]
[393978609,1763154633409,-300.0,0.00017476,2]
[393978611,1763154633421,-300.0,0.00017476,2]
[393978613,1763154633430,-438.0,0.00017479,2]
[393978615,1763154633439,-527.01305906,0.00017498,2]
[393978617,1763154633449,-1600.0,0.000175,6]
[393978619,1763154633458,-438.0,0.00017538,2]
[393978621,1763154633468,-300.0,0.000176,6]
[393978623,1763154633477,-300.0,0.000177,6]
[393978625,1763154633486,-1000.0,0.000177,2]
[393978627,1763154633496,-1064.23,0.00017713,2]
[393978629,1763154633506,-438.0,0.00017732,2]
[393978631,1763154633515,-1114.0,0.000178,2]
[393978633,1763154633524,-300.0,0.000178,6]
[393978635,1763154633533,-420.0,0.00017859,2]
[393978637,1763154633548,-587.0,0.00017861,2]
[393978639,1763154633558,-1000.0,0.00017873,2]
[393978641,1763154633567,-279.03588581,0.00017883,2]
[393978643,1763154633577,-166.34649058,0.00017883,2]
[393978645,1763154633586,-1233.18483605,0.00017883,2]
[393978647,1763154633596,-1233.18483604,0.00017885,2]
[393978650,1763154633605,-1233.18483604,0.00017887,2]
[393978652,1763154633617,-279.0358858,0.00017887,2]
[393978654,1763154633626,-1233.18483604,0.00017889,2]
[393978656,1763154633637,-1233.18483604,0.00017891,2]
[393978658,1763154633646,-279.0358858,0.00017892,2]
[393978660,1763154633655,-1233.18483604,0.00017892,2]
[393978662,1763154633666,-279.0358858,0.00017896,2]
[393978664,1763154633677,-166.34649057,0.00017898,2]
[393978666,1763154633686,-300.0,0.000179,6]
[393978668,1763154633695,-8291.44102876,0.000179,2]
[393978670,1763154633704,-658.36706732,0.000179,2]
[393978672,1763154633714,-279.0358858,0.000179,2]
[393978674,1763154633723,-279.0358858,0.00017904,2]
[393978676,1763154633732,-279.0358858,0.00017909,2]
[393978678,1763154633741,-2460.21809,0.0001791,2]
[393978680,1763154633750,-298.861367,0.00017913,2]
[393978682,1763154633759,-166.34649057,0.00017913,2]
[393978684,1763154633768,-279.0358858,0.00017913,2]
[393978686,1763154633778,-502.0,0.00017918,2]
[393978688,1763154633787,-151.8,0.00017932,2]
[393978690,1763154633797,-152.07,0.00017932,2]
[393978692,1763154633806,-1680.0,0.00017947,2]
[393978694,1763154633815,-438.0,0.00017947,2]
[393978696,1763154633824,-500.0,0.00017973,2]
[393978698,1763154633834,-500.0,0.00017973,2]
[393978701,1763154633843,-481.92632213,0.00017973,2]
[393978703,1763154633853,-500.65948408,0.00017973,2]
[393978705,1763154633864,-500.0,0.00017973,2]
[393978707,1763154633873,-500.0,0.00017973,2]
[393978709,1763154633882,-500.0,0.00017973,2]
[393978711,1763154633892,-500.0,0.00017973,2]
[393978713,1763154633901,-500.0,0.00017973,2]
[393978715,1763154633911,-500.0,0.00017973,2]
[393978717,1763154633922,-500.0,0.00017973,2]
[393978719,1763154633931,-500.0,0.00017973,2]
[393978721,1763154633941,-500.0,0.00017973,2]
[393978723,1763154633950,-500.0,0.00017973,2]
[393978725,1763154633959,-500.0,0.00017973,2]
[393978727,1763154633968,-500.0,0.00017973,2]
[393978729,1763154633977,-178.76322882,0.00017973,2]
[393978731,1763154633986,-205.45206529,0.00017973,2]
[393978733,1763154633996,-500.0,0.00017973,2]
[393978736,1763154634006,-500.0,0.00017973,2]
[393978738,1763154634014,-500.0,0.00017973,2]
[393978740,1763154634023,-500.0,0.00017973,2]
[393978742,1763154634032,-500.0,0.00017973,2]
[393978744,1763154634041,-500.0,0.00017973,2]
[393978746,1763154634049,-500.0,0.00017973,2]
[393978748,1763154634058,-500.0,0.00017973,2]
[393978750,1763154634067,-500.0,0.00017973,2]
[393978752,1763154634076,-500.0,0.00017973,2]
[393978754,1763154634085,-500.0,0.00017973,2]
[393978756,1763154634094,-500.0,0.00017982,2]
[393978758,1763154634103,-500.0,0.00017982,2]
[393978760,1763154634112,-20145.3325162,0.00017983,2]
[393978762,1763154634121,-9524.87219954,0.00017983,2]
[393978781,1763154634288,-269894.10829766,0.00017983,2]
[393978783,1763154634299,-9017.79238519,0.00017983,2]
[393978786,1763154634310,-5207.02539024,0.00017983,2]
[393978788,1763154634321,-13998.37791035,0.00017983,2]
[393978791,1763154634335,-323.44091325,0.00017983,2]
[393978845,1763154637675,-1201.32707385,0.00015887,2]
[393978846,1763154637685,-158.34456077,0.00016252,2]
[393978847,1763154637694,-221.24224149,0.00016252,2]
[393978848,1763154637703,-151.0,0.00016772,2]
[393978849,1763154637713,-3459.03204188,0.00017164,2]
[393978850,1763154637722,-1104.65328144,0.00017894,2]
[393978851,1763154637733,-128.5315546,0.00017894,2]
[393978852,1763154637744,-817.7484454,0.00017896,2]
[393979064,1763154640012,-3459.03204188,0.00017348,2]
[393979066,1763154640024,-415.43639064,0.00017896,2]
[393979068,1763154640034,-383.99286662,0.000179,2]
[393979070,1763154640045,-504.55104417,0.000179,2]
[393979216,1763154642996,-517.2736,0.00017898,2]
[393979217,1763154643041,-715.91123604,0.00017898,2]
[393979218,1763154643051,-290.51801111,0.000179,2]
[393979219,1763154643061,-5816.37312085,0.00017983,2]
[393979239,1763154645873,-849.42345356,0.00017532,2]
[393979267,1763154682877,452.0,0.00041547,30]
[393979268,1763154683387,152.630637,0.00041547,30]
[393979269,1763154683472,152.630637,0.00041547,30]
[393979270,1763154683552,152.630637,0.00041547,30]
[393979271,1763154683621,152.630637,0.00041547,30]
[393979272,1763154683701,152.630637,0.00041547,30]
[393979273,1763154683784,152.630637,0.00041547,30]
[393979274,1763154683887,152.630637,0.00041547,30]
[393979275,1763154684005,152.630637,0.00041547,30]
[393979276,1763154684096,152.630637,0.00041547,30]
[393979277,1763154684621,151.955589,0.00041547,30]
[393979278,1763154684698,151.955589,0.00041547,30]
[393979279,1763154684775,151.955589,0.00041547,30]
[393979280,1763154684836,151.955589,0.00041547,30]
[393979281,1763154684900,151.955589,0.00041547,30]
[393979282,1763154684964,151.955589,0.00041547,30]
[393979283,1763154685032,151.955589,0.00041547,30]
[393979284,1763154685224,162.118864,0.00041547,30]
[393979285,1763154685292,162.118864,0.00041547,30]
[393979286,1763154685388,162.118864,0.00041547,30]
[393979287,1763154685690,162.118864,0.00041547,30]
[393979288,1763154685991,162.118864,0.00041547,30]
[393979289,1763154686301,162.118864,0.00041547,30]
[393979290,1763154686620,162.118864,0.00041547,30]
[393979291,1763154687018,162.118864,0.00041547,30]
[393979292,1763154695699,1000.0,0.00041547,30]
[393979293,1763154730723,500.0,0.00015787,2]
[393979294,1763154732061,159.9905,0.00041547,30]
[393979296,1763154789877,160.603281,0.00041545,30]
[393979298,1763154906498,161.66713131,0.00041545,30]
[393979299,1763154908252,250.0,0.00041545,30]
[393979300,1763154908855,250.0,0.00041545,30]
[393979301,1763154909481,250.0,0.00041545,30]
[393979302,1763154910187,250.0,0.00041545,30]
[393979305,1763154965548,198.09,0.00025042,120]
[393979308,1763155025681,359.76179104,0.00041545,30]
[393979309,1763155025753,201.81957757,0.00041545,30]
[393979310,1763155025830,6888.0,0.00041545,30]
[393979311,1763155025899,533.97301374,0.00041545,30]
[393979312,1763155025971,500.0,0.00041545,30]
[393979313,1763155026425,7142.856,0.00041545,30]
[393979314,1763155026519,500.0,0.00041545,30]
[393979315,1763155027030,7407.141672,0.00041545,30]
[393979316,1763155027112,500.0,0.00041545,30]
[393979317,1763155027664,7681.20591386,0.00041545,30]
[393979318,1763155027757,500.0,0.00041545,30]
[393979319,1763155028291,7965.41053268,0.00041545,30]
[393979320,1763155028388,500.0,0.00041545,30]
[393979321,1763155028581,500.0,0.00041545,30]
[393979322,1763155028712,151.0,0.00041545,30]
[393979323,1763155028865,151.0,0.00041545,30]
[393979324,1763155028977,500.0,0.00041545,30]
[393979325,1763155029053,8260.13072239,0.00041545,30]
[393979326,1763155029216,500.0,0.00041545,30]
[393979327,1763155029303,156.587,0.00041545,30]
[393979328,1763155029471,151.0,0.00041545,30]
[393979329,1763155029609,500.0,0.00041545,30]
[393979330,1763155029815,500.0,0.00041545,30]
[393979331,1763155030130,162.380719,0.00041545,30]
[393979332,1763155030207,151.0,0.00041545,30]
[393979333,1763155030295,500.0,0.00041545,30]
[393979334,1763155030416,500.0,0.00041545,30]
[393979335,1763155030561,162.380719,0.00041545,30]
[393979336,1763155030666,250.0,0.00041545,30]
[393979337,1763155030792,151.0,0.00041545,30]
[393979338,1763155030909,500.0,0.00041545,30]
[393979339,1763155031028,500.0,0.00041545,30]
[393979340,1763155031201,160.03601013,0.00041545,30]
[393979341,1763155031269,302.0,0.00041545,30]
[393979342,1763155031342,151.0,0.00041545,30]
[393979343,1763155031407,250.0,0.00041545,30]
[393979344,1763155031531,500.0,0.00041545,30]
[393979345,1763155031636,500.0,0.00041545,30]
[393979346,1763155031916,151.0,0.00041545,30]
[393979347,1763155031981,250.0,0.00041545,30]
[393979348,1763155032138,500.0,0.00041545,30]
[393979349,1763155032291,500.0,0.00041545,30]
[393979350,1763155032530,250.0,0.00041545,30]
[393979351,1763155032747,500.0,0.00041545,30]
[393979352,1763155032925,500.0,0.00041545,30]
[393979353,1763155033140,250.0,0.00041545,30]
[393979354,1763155033381,500.0,0.00041545,30]
[393979355,1763155033577,500.0,0.00041545,30]
[393979356,1763155033773,250.0,0.00041545,30]
[393979357,1763155034178,500.0,0.00041545,30]
[393979358,1763155034243,500.0,0.00041545,30]
[393979359,1763155034374,250.0,0.00041545,30]
[393979360,1763155034796,500.0,0.00041545,30]
[393979361,1763155034871,500.0,0.00041545,30]
[393979362,1763155034957,250.0,0.00041545,30]
[393979363,1763155035098,500.0,0.00041545,30]
[393979364,1763155035434,500.0,0.00041545,30]
[393979365,1763155035510,500.0,0.00041545,30]
[393979366,1763155035590,250.0,0.00041545,30]
[393979367,1763155035705,500.0,0.00041545,30]
[393979368,1763155036051,500.0,0.00041545,30]
[393979369,1763155036117,500.0,0.00041545,30]
[393979370,1763155036186,250.0,0.00041545,30]
[393979371,1763155036307,500.0,0.00041545,30]
[393979372,1763155036648,500.0,0.00041545,30]
[393979373,1763155036736,500.0,0.00041545,30]
[393979374,1763155036827,250.0,0.00041545,30]
[393979375,1763155036908,500.0,0.00041545,30]
[393979376,1763155037284,500.0,0.00041545,30]
[393979377,1763155037380,250.0,0.00041545,30]
[393979378,1763155037532,500.0,0.00041545,30]
[393979379,1763155037899,500.0,0.00041545,30]
[393979380,1763155037974,250.0,0.00041545,30]
[393979381,1763155038146,500.0,0.00041545,30]
[393979382,1763155038637,250.0,0.00041545,30]